Cogmind - Beta 16.1 @@@ ROGUE MODE // 2026.04.24 @ 23:42:04 Player: Foongus0298 Result: Destroyed by B-75 Beast with Magnetic Acceleration Cannon Performance ------------- Evolutions (3) 1500 Regions Visited (11) 2200 Robots Destroyed (140) 700 Value Destroyed (4486) 4486 Prototype IDs (33) 660 Alien Tech Used (0) 0 Bonus (1658) 1658 TOTAL SCORE: 11204 Bonus ------- High Alert Combat Kills 85 Aligned with FarCom 300 Met Imprinter 300 Destroyed Z-Imprinter 1000 Friendly Fire -27 Cogmind --------- Core Integrity 0/700 Matter 300/300 Energy 100/100 System Corruption 0% Temperature Cool (0) Movement Core (50) Location -6/Proximity Caves Parts ------- > --- POWER (1) -------- (None) > --- PROPULSION (5) --- (None) > --- UTILITY (5) ------ (None) > --- WEAPON (2) ------- (None) > --- INVENTORY (5) ---- Experimental Heat Sink Zionite Biocell Improved Reaction Control System Bore Cannon Makeshift Hammer Peak State ------------ > --- POWER ------------ Zionite Light DM Reactor > --- PROPULSION ------- Zionite Glidesys I Zionite Glidesys I Zionite Glidesys I Cesium-ion Thruster Surge Thruster > --- UTILITY ---------- Experimental Heat Sink Huge Storage Unit Improved Signal Interpreter Advanced Targeting Computer Hardened Medium Armor Plating > --- WEAPON ----------- Zionite Laser-S Makeshift Hammer > --- INVENTORY -------- Deuterium Engine Deuterium Engine Cryofiber Web Experimental Heat Sink Large Storage Unit Zionite Biocell Compact Matter Pod Matter Filter Hardened Medium Armor Plating Hardened Medium Armor Plating System Shield Skeleton Box High-powered Tractor Beam Hacking Drone Bay Minigun Gauss Cannon Gauss Cannon Bore Cannon [Rating: 66] Favorites ----------- Power Reinforced Deuterium Engine Engine Reinforced Deuterium Engine Power Core Nuclear Core Reactor Zionite Light DM Reactor Propulsion Light Treads Treads Light Treads Leg Improved Titanium Leg Wheel Wheel Hover Unit Zionite Glidesys I Flight Unit Surge Thruster Utility Hardened Medium Armor Plating Device Improved Heat Sink Storage Huge Storage Unit Processor Improved Signal Interpreter Hackware System Shield Protection Hardened Medium Armor Plating Weapon Gauss Cannon Energy Gun Gatling Laser Energy Cannon Advanced Beam Cannon Ballistic Gun Heavy Assault Rifle Ballistic Cannon Gauss Cannon Launcher Scatter Rocket Array Special Weapon RU-N14's Throwing Claymores Impact Weapon Makeshift Hammer Build | -11 -10 -10 -10 -9 -8 -7 -7 -7 -7 -7 -6 ------- Run | Yrd Mat Min Exi Min Mat Fac Low Low Zio Dee Pro Slots Evolved 6 | . . . . . 4 2 . . . . . Power . | . . . . . . . . . . . . Propulsion 3 | . . . . . 2 1 . . . . . Utility 3 | . . . . . 2 1 . . . . . Weapon . | . . . . . . . . . . . . Parts Attached 104 | 7 11 . 1 5 33 18 1 6 4 17 1 Power 10 | 1 2 . . 1 3 2 . . . 1 . Engine 7 | 1 2 . . 1 2 1 . . . . . Core 2 | . . . . . 1 1 . . . . . Reactor 1 | . . . . . . . . . . 1 . Propulsion 25 | 2 1 . . . 10 1 . 3 . 8 . Treads 16 | 2 1 . . . 10 1 . 2 . . . Leg 1 | . . . . . . . . . . 1 . Wheel 2 | . . . . . . . . 1 . 1 . Hover 4 | . . . . . . . . . . 4 . Flight 2 | . . . . . . . . . . 2 . Utility 37 | 2 3 . 1 1 12 7 1 1 2 6 1 Device 12 | 1 . . . 1 3 2 . 1 1 3 . Storage 4 | 1 1 . 1 . 1 . . . . . . Processor 3 | . . . . . . 1 . . 1 1 . Hackware 2 | . . . . . 2 . . . . . . Protection 16 | . 2 . . . 6 4 1 . . 2 1 Artifact . | . . . . . . . . . . . . Weapon 32 | 2 5 . . 3 8 8 . 2 2 2 . Energy Gun 4 | . . . . . 2 1 . . . 1 . Energy Cannon 2 | . . . . . 2 . . . . . . Ballistic Gun 9 | 2 5 . . 2 . . . . . . . Ballistic Cannon 10 | . . . . . 2 5 . 2 . 1 . Launcher 5 | . . . . 1 2 1 . . 1 . . Special Weapon 1 | . . . . . . . . . 1 . . Impact Weapon 1 | . . . . . . 1 . . . . . Slashing Weapon . | . . . . . . . . . . . . Piercing Weapon . | . . . . . . . . . . . . Special Melee Weapon . | . . . . . . . . . . . . Unidentified Prototypes 10 | . . . . 1 1 1 . . 3 4 . Parts Lost 38 | . 1 . . 1 7 2 6 1 . 15 5 Power 2 | . . . . . 1 . . . . 1 . Propulsion 17 | . . . . . 1 . 5 . . 8 3 Utility 13 | . 1 . . 1 4 1 1 1 . 2 2 Weapon 6 | . . . . . 1 1 . . . 4 . Highest Loss Streak 10 | . 1 . . 1 3 1 4 1 . 10 3 To Critical Strikes . | . . . . . . . . . . . . Average Backups 19 | 3 9 10 10 11 15 24 20 22 24 21 18 Power 1 | . 1 1 1 1 1 1 2 2 2 2 2 Propulsion 2 | 1 2 2 2 2 3 3 2 3 4 2 . Utility 7 | . 1 2 2 2 3 9 9 9 10 10 11 Weapon 6 | . 4 5 4 4 6 8 6 6 7 5 4 Tool/Special . | . . . . . . . . . . . . Unused Backups 35 | . 5 . . 1 8 10 . 2 1 . 8 Power 5 | . 1 . . . . 1 . 1 . . 2 Propulsion 5 | . 1 . . . 3 . . 1 . . . Utility 11 | . . . . . 2 5 . . 1 . 3 Weapon 13 | . 3 . . 1 3 4 . . . . 2 Tool/Special 1 | . . . . . . . . . . . 1 Average Slot Usage (%) 93 | . 99 100 100 94 95 93 84 86 99 85 94 Engine 5 | . 14 14 14 14 4 . 7 7 7 3 . Core 2 | . . . . . 4 6 . . . . . Treads 27 | . 28 28 28 28 34 36 22 21 30 10 . Wheel 1 | . . . . . . . . 5 7 1 . Hover 1 | . . . . . . . . . . 7 22 Device 5 | . 6 . . . 8 7 7 5 . 5 6 Storage 8 | . 14 14 14 14 9 7 7 7 7 7 6 Processor 6 | . . . . . . 6 7 7 14 15 14 Protection 11 | . 7 14 14 8 10 10 15 14 14 8 6 Energy Gun 2 | . . . . . 9 . . . . 2 6 Ballistic Gun 5 | . 28 28 28 25 1 . . . . . . Ballistic Cannon 8 | . . . . . 5 13 15 13 14 5 4 Peak Build Rating 66 | 9 12 10 10 18 34 44 40 44 48 66 66 Average Rating 33 | 5 10 10 10 11 27 41 36 39 42 48 63 On Entrance 26 | . 9 10 10 10 14 34 38 36 44 43 66 Avg Prop Armor Cover (%) 3 | . . . . . . . 4 4 1 4 5 Naked Turns 4 | . . . . . . . . . . . 4 Heaviest Build 128 | 15 24 24 34 35 116 126 126 128 128 126 109 Greatest Support 100 | 40 40 40 40 40 80 100 100 83 83 83 42 Greatest Overweight (x) 41 | . . . . . 1 1 6 41 1 13 7 Average Overweight (x) 1 | . . . . . . 1 2 4 1 2 2 Largest Inventory Capacity 25 | 8 10 10 15 15 25 25 25 25 25 25 25 Average Capacity 21 | 7 9 10 10 15 18 25 25 25 25 25 24 Most Carried 25 | 4 10 10 10 15 22 25 22 24 25 25 19 Average Carried 19 | 3 9 10 9 11 15 24 20 22 24 21 18 Final Capacity 25 | 8 10 10 15 15 25 25 25 25 25 25 5 Final Carried 25 | 4 10 10 10 15 19 23 22 24 25 19 5 Class Distribution -------------------- 62% | Scavenger-Mutant 37% | Mutant Dominant Class ---------------- Mutant | -10/Materials Mutant | -10/Mines Mutant | -10/Exiles Mutant | -9/Mines Scavenger-Mutant | -8/Materials Scavenger-Mutant | -7/Factory Mutant | -7/Lower Caves Scavenger-Mutant | -7/Lower Caves Scavenger-Mutant | -7/Zion Scavenger-Mutant | -7/Deep Caves Scavenger-Mutant | -6/Proximity Caves Resources | -11 -10 -10 -10 -9 -8 -7 -7 -7 -7 -7 -6 ----------- Run | Yrd Mat Min Exi Min Mat Fac Low Low Zio Dee Pro Matter Collected 5483 | 313 405 127 . 326 1191 1280 532 412 117 545 235 Remotely 1711 | . . . . . 551 396 532 120 . 112 . Salvage Created 4445 | 87 661 127 . 130 1411 1006 223 188 . 435 177 Parts 215 | 3 52 7 . 5 71 35 15 10 . 16 1 Haulers Intercepted 7 | . 2 . . . 4 1 . . . . . Recyclers Shooed 2 | . 1 . . . 1 . . . . . . Parts Field Recycled . | . . . . . . . . . . . . Retrieved Matter . | . . . . . . . . . . . . Parts Self-Destructed 26 | . . . . . . . 15 10 . . 1 Prevented 1 | . . . . . . . . . . . 1 Parts Restored . | . . . . . . . . . . . . Kills | -11 -10 -10 -10 -9 -8 -7 -7 -7 -7 -7 -6 ------- Run | Yrd Mat Min Exi Min Mat Fac Low Low Zio Dee Pro Combat Hostiles Destroyed 117 | . 20 2 . 12 29 22 12 5 . 11 4 Melee 1 | . . . . . . . . . . 1 . Guns 45 | . 20 2 . 6 11 . . . . 3 3 Cannons 47 | . . . . . 11 19 12 2 . 2 1 AOE 23 | . . . . 6 7 3 . 3 . 4 . Classes Destroyed 18 | 2 4 1 . 2 4 1 . 1 . 1 2 Worker 6 | . . 2 . . 1 3 . . . . . Builder 3 | . . . . 1 1 1 . . . . . Tunneler 1 | 1 . . . . . . . . . . . Hauler 7 | . 2 . . . 4 1 . . . . . Recycler 7 | 1 . . . . 3 3 . . . . . Mechanic 2 | . . . . . 1 1 . . . . . Drone 1 | . . . . . . . . . . . 1 Watcher 5 | . 2 . . . 3 . . . . . . Swarmer 30 | . 12 . . 4 4 3 7 . . . . Grunt 48 | . 8 2 . . 18 12 3 3 . . 2 Brawler 1 | . . . . . . . . . . . 1 Duelist 2 | . . . . . 1 . 1 . . . . Sentry 6 | . . . . . 4 2 . . . . . Hunter 1 | . . . . . . . . 1 . . . Programmer 6 | . . . . . . 4 1 1 . . . Heavy 3 | . . . . . 2 1 . . . . . Z-Light 10 | . . . . . . . . . . 10 . Assembled 8 | . . . . 8 . . . . . . . Best Kill Streak 9 | 2 5 2 . 6 7 9 4 3 . 3 2 Combat Bots Only 7 | . 4 1 . 6 5 7 4 3 . 3 2 Max Kills in Single Turn 5 | 2 2 1 . 3 5 3 1 3 . 2 2 Gunslinging . | . . . . . . . . . . . . Exploded 4 | . . . . 3 4 2 . 3 . 2 . Melee 1 | . . . . . . . . . . 1 . Uniques/NPCs Destroyed 1 | . . . . . . . . . . 1 . Z-Imprinter (-7/Deep Caves) Combat | -11 -10 -10 -10 -9 -8 -7 -7 -7 -7 -7 -6 -------- Run | Yrd Mat Min Exi Min Mat Fac Low Low Zio Dee Pro Hostile Shots Fired 680 | . 57 8 . 23 136 120 124 27 . 138 47 Missed 184 | . 16 2 . 3 38 38 29 3 . 43 12 Hits 496 | . 41 6 . 20 98 82 95 24 . 95 35 Melee 10 | . . . . 6 . . . 4 . . . Projectile 486 | . 41 6 . 14 98 82 95 20 . 95 35 AOE 1 | . . . . . 1 . . . . . . Critical Strikes 15 | . . . . . 9 3 2 . . . 1 Actively Blocked 3 | . . . . . 3 . . . . . . Part Disruptions 1 | . . . . 1 . . . . . . . Damage Taken 9249 | . 410 81 . 350 2068 1311 1443 350 . 2713 523 Core 990 | . 41 32 . 56 141 35 112 29 . 463 81 Absorbed by Shields . | . . . . . . . . . . . . Redirected to Shielding 217 | . . . . . 217 . . . . . . Regen/Repaired (Parts) 461 | . . . . . 183 278 . . . . . Core Remaining (%) 74 | 100 . . . 48 74 . . . . . . Volleys Fired 349 | 10 40 10 . 25 102 67 32 13 . 33 17 Largest 2 | 2 2 2 . 2 2 2 2 2 . 2 2 Hottest 160 | 40 46 46 . 46 160 117 80 80 . 95 100 Shots Fired 653 | 20 80 20 . 32 200 131 65 24 1 51 29 Gun 269 | 20 80 20 . 26 92 1 . . . 13 17 Cannon 366 | . . . . . 105 128 65 23 1 32 12 Launcher 18 | . . . . 6 3 2 . 1 . 6 . Special . | . . . . . . . . . . . . Kinetic 516 | 20 80 20 . 26 109 128 65 23 1 32 12 Thermal 119 | . . . . . 88 1 . . . 13 17 Explosive 18 | . . . . 6 3 2 . 1 . 6 . Electromagnetic . | . . . . . . . . . . . . Robot Hit Streak 34 | 4 9 8 . 9 34 15 7 2 2 10 5 Robot Miss Streak 12 | 2 2 2 . 5 6 6 7 11 . 12 11 Penetration Max 1 | . . . . . . . . . . 1 . Secondary Targets 2 | . 2 . . . . . . . . . . Max Gunslinging Chain 1 | . 1 . . . . . . . . . . Shots Hit Robots 410 | 13 51 15 . 23 144 85 31 5 1 31 11 Core Hits 261 | 3 29 6 . 23 80 51 13 10 . 39 7 Critical Kills 1 | . . . . . . 1 . . . . . Critical Parts Destroyed . | . . . . . . . . . . . . Critical Strikes 28 | . . . . . 2 14 5 1 . 2 4 Blast 27 | . . . . . 2 13 5 1 . 2 4 Smash 1 | . . . . . . 1 . . . . . Melee Attacks 15 | . . . . . . 5 . . . 10 . Impact 15 | . . . . . . 5 . . . 10 . Slashing . | . . . . . . . . . . . . Piercing . | . . . . . . . . . . . . Sneak Attacks 3 | . . . . . . 3 . . . . . Combat Hostiles . | . . . . . . . . . . . . Follow-up Attacks . | . . . . . . . . . . . . Damage Inflicted 12473 | 175 760 243 . 646 4003 2990 993 362 27 1926 348 Guns 3691 | 175 760 243 . 299 1675 22 . . . 341 176 Cannons 5501 | . . . . . 1638 2201 993 170 27 300 172 Explosions 2711 | . . . . 347 690 435 . 192 . 1047 . Melee 570 | . . . . . . 332 . . . 238 . Ramming . | . . . . . . . . . . . . Kinetic 7039 | 175 760 243 . 299 1699 2201 993 170 27 300 172 Thermal 2153 | . . . . . 1614 22 . . . 341 176 Explosive 2711 | . . . . 347 690 435 . 192 . 1047 . Electromagnetic . | . . . . . . . . . . . . Impact 570 | . . . . . . 332 . . . 238 . Slashing . | . . . . . . . . . . . . Piercing . | . . . . . . . . . . . . Highest Corruption 10 | . . . . 2 1 8 9 10 10 . . Average Corruption 6 | . . . . 2 1 4 8 9 10 . . Corruption Purged . | . . . . . . . . . . . . Corruption Blocked . | . . . . . . . . . . . . Effects 140 | . . . . 6 . 51 33 43 7 . . Message Errors 35 | . . . . 1 . 13 11 9 1 . . Matter Fused 29 | . . . . 3 . 11 3 12 . . . Heat Flow Errors 16 | . . . . . . 6 5 2 3 . . Energy Discharges 19 | . . . . . . 10 3 5 1 . . Parts Rejected 1 | . . . . . . 1 . . . . . Parts Fused 1 | . . . . 1 . . . . . . . Data Loss (minor) 18 | . . . . . . 6 7 5 . . . Data Loss (major) 10 | . . . . 1 . . 1 7 1 . . Misfires 5 | . . . . . . 1 2 1 1 . . Alerts 3 | . . . . . . 1 . 2 . . . Weapon Failures 3 | . . . . . . 2 1 . . . . Overload Shots . | . . . . . . . . . . . . Overflow Damage 381 | . . . . 24 81 166 60 . . 50 . Projectiles 136 | . . . . . 31 45 60 . . . . Explosions 77 | . . . . 24 50 . . . . 3 . Melee 168 | . . . . . . 121 . . . 47 . Knockbacks 50 | . . . . . 6 27 12 2 1 . 2 Impact 2 | . . . . . . 2 . . . . . Kinetic 46 | . . . . . 6 25 10 2 1 . 2 Secondary 2 | . . . . . . . 2 . . . . Self-Inflicted Damage 112 | . . . . 53 . 28 . 31 . . . Shots 5 | . . . . 3 . 1 . 1 . . . Rammed . | . . . . . . . . . . . . Targets Rammed . | . . . . . . . . . . . . Kicked . | . . . . . . . . . . . . Crushed . | . . . . . . . . . . . . Highest Temperature 483 | . 7 12 . 22 483 279 395 252 141 387 12 Average Temperature 100 | . 1 5 . 10 109 104 115 82 58 141 5 Received Heat Transfer 2705 | . 150 45 . 200 738 216 324 45 . 888 99 Effects 13 | . . . . . 8 . 3 . . 2 . Shutdowns 1 | . . . . . . . 1 . . . . Energy Bleed 2 | . . . . . 2 . . . . . . Interference 6 | . . . . . 6 . . . . . . Matter Decay 1 | . . . . . . . . . . 1 . Short Circuit 1 | . . . . . . . 1 . . . . Damage (minor) 2 | . . . . . . . 1 . . 1 . Siege Activations . | . . . . . . . . . . . . Martial Activations . | . . . . . . . . . . . . Shielding Activations . | . . . . . . . . . . . . Robots Disrupted . | . . . . . . . . . . . . Combat Hostiles . | . . . . . . . . . . . . Robots Corrupted 3 | . . . . . . 2 . . . 1 . Combat Hostiles 1 | . . . . . . . . . . 1 . Parts Fried 7 | . . . . . . 3 . . . 4 . Impact Corruptions 8 | . . . . . . 5 . . . 3 . Robots Melted . | . . . . . . . . . . . . Combat Hostiles . | . . . . . . . . . . . . Parts Melted 9 | . . . . . 6 . . . . 3 . Heat Transferred 4416 | . . . . . 3700 50 . . . 444 222 Parts Sabotaged . | . . . . . . . . . . . . Parts Stolen 2 | . . . . . . . . 2 . . . Parts Stripped . | . . . . . . . . . . . . Power Chain Reactions . | . . . . . . . . . . . . Alert | -11 -10 -10 -10 -9 -8 -7 -7 -7 -7 -7 -6 ------- Run | Yrd Mat Min Exi Min Mat Fac Low Low Zio Dee Pro Maximum Alert Level 2 | . 1 . . . 2 2 . . . . . Low Security (%) 59 | 100 54 100 . 100 60 44 . . . . . Level 1 30 | . 45 . . . 19 47 . . . . . Level 2 9 | . . . . . 19 8 . . . . . Level 3 . | . . . . . . . . . . . . Level 4 . | . . . . . . . . . . . . Level 5 . | . . . . . . . . . . . . High Security . | . . . . . . . . . . . . Max Security . | . . . . . . . . . . . . Peak Influence 535 | 10 289 107 . 104 470 535 . . . . . Initial 210 | . . 97 . . 16 210 . . . . . Average 150 | . 166 77 . 14 162 188 . . . . . Influence Increases 3204 | 10 602 60 . 140 971 891 280 130 . . 120 Destroy 0b10 Robot/C 1940 | . 400 40 . 80 580 440 240 100 . . 60 Destroy 0b10 Robot/NC 160 | 10 20 10 . 5 65 45 . . . . 5 Destroy Leader 444 | . 88 10 . 10 154 102 40 30 . . 10 Successful Hack 130 | . 16 . . . 43 71 . . . . . Disable Machine 150 | . 30 . . 15 15 90 . . . . . Destroy Structure 125 | . 3 . . 30 54 38 . . . . . Lose Combat Pursuer 255 | . 45 . . . 60 105 . . . . 45 Influence Decreases 3204 | 10 352 283 27 96 551 822 626 317 . . 120 Entered New Map 696 | . . 153 27 . 28 254 198 36 . . . Time Decay 2338 | 10 342 130 . 96 453 548 368 281 . . 110 Lost Part 170 | . 10 . . . 70 20 60 . . . 10 Squads Dispatched 26 | . 5 . . . 7 14 . . . . . Investigation 5 | . 1 . . . 2 2 . . . . . Extermination 6 | . . . . . . 6 . . . . . Reinforcement 13 | . 4 . . . 3 6 . . . . . Assault 1 | . . . . . 1 . . . . . . Garrison 1 | . . . . . 1 . . . . . . Intercept . | . . . . . . . . . . . . Searches Triggered . | . . . . . . . . . . . . Construction Impeded . | . . . . . . . . . . . . Haulers Reinforced 1 | . . . . . . 1 . . . . . Active Scanning Responses . | . . . . . . . . . . . . Cargo Convoy Interrupts 1 | . . . . . . 1 . . . . . Stealth | -11 -10 -10 -10 -9 -8 -7 -7 -7 -7 -7 -6 --------- Run | Yrd Mat Min Exi Min Mat Fac Low Low Zio Dee Pro Distress Signals 9 | . 2 . . 2 2 . . . . . 3 Communications Jammed . | . . . . . . . . . . . . Distress Signals . | . . . . . . . . . . . . Times Spotted 173 | . 30 2 . 23 42 34 12 7 . 12 11 Peak Tracking Total 17 | . 4 2 . 17 5 4 4 3 . 5 4 Tactical Retreats 18 | . 2 . . 5 4 5 . . . . 2 Traps | -11 -10 -10 -10 -9 -8 -7 -7 -7 -7 -7 -6 ------- Run | Yrd Mat Min Exi Min Mat Fac Low Low Zio Dee Pro Traps Triggered 15 | . 2 . . . 2 11 . . . . . Indirectly . | . . . . . . . . . . . . Trap Hack Attempts . | . . . . . . . . . . . . Triggered . | . . . . . . . . . . . . Disarmed . | . . . . . . . . . . . . Reprogrammed . | . . . . . . . . . . . . Reused . | . . . . . . . . . . . . Traps Extracted . | . . . . . . . . . . . . Installed . | . . . . . . . . . . . . Triggered . | . . . . . . . . . . . . Machines | -11 -10 -10 -10 -9 -8 -7 -7 -7 -7 -7 -6 ---------- Run | Yrd Mat Min Exi Min Mat Fac Low Low Zio Dee Pro Machines Disabled 11 | . 2 . . 1 1 6 . . 1 . . Max in Single Turn 1 | . 1 . . 1 1 1 . . 1 . . Garrison Access 1 | . . . . . 1 . . . . . . Machines Repaired . | . . . . . . . . . . . . Machines Dismantled . | . . . . . . . . . . . . Machines Sabotaged . | . . . . . . . . . . . . Overloaded Fab Kills . | . . . . . . . . . . . . Hacking | -11 -10 -10 -10 -9 -8 -7 -7 -7 -7 -7 -6 --------- Run | Yrd Mat Min Exi Min Mat Fac Low Low Zio Dee Pro Machines Accessed 25 | . 4 . 2 1 8 10 . . . . . Terminals 13 | . 4 . . . 5 4 . . . . . Fabricators 1 | . . . . . . 1 . . . . . Repair Stations 3 | . . . . . 1 2 . . . . . Recycling Units 1 | . . . . . . 1 . . . . . Scanalyzers 3 | . . . . . 1 2 . . . . . Garrison Access 1 | . . . . . 1 . . . . . . Total Hacks 60 | . 12 . 2 1 22 23 . . . . . Successful 33 | . 4 . 2 1 13 13 . . . . . Failed 25 | . 8 . . . 8 9 . . . . . Catastrophic 5 | . . . . . 2 3 . . . . . Database Lockouts 2 | . . . . . 1 1 . . . . . Manual 22 | . 12 . 1 . 5 . . . 4 . . Terminals 34 | . 12 . . . 14 8 . . . . . Fabricators 1 | . . . . . . 1 . . . . . Repair Stations 10 | . . . . . 4 6 . . . . . Recycling Units 2 | . . . . . . 2 . . . . . Scanalyzers 9 | . . . . . 3 6 . . . . . Garrison Access 1 | . . . . . 1 . . . . . . Terminal Hacks 12 | . 2 . 2 1 4 3 . . . . . Record 1 | . . . 1 . . . . . . . . Part Schematic 1 | . 1 . . . . . . . . . . Robot Analysis 3 | . 1 . . . 2 . . . . . . Open Door 1 | . . . . 1 . . . . . . . Branch Access Points 1 | . . . . . . 1 . . . . . Emergency Access Points 2 | . . . . . 1 1 . . . . . Alert Level 1 | . . . . . . 1 . . . . . Hauler Manifests 1 | . . . . . 1 . . . . . . Proto ID Catalog 1 | . . . 1 . . . . . . . . Fabricator Hacks . | . . . . . . . . . . . . Repair Station Hacks 7 | . . . . . 4 3 . . . . . Scan Component 4 | . . . . . 2 2 . . . . . Repair 3 | . . . . . 2 1 . . . . . Recycling Unit Hacks 2 | . . . . . . 2 . . . . . Report Inventory 1 | . . . . . . 1 . . . . . Retrieve Components 1 | . . . . . . 1 . . . . . Scanalyzer 7 | . . . . . 2 5 . . . . . Insert Component 2 | . . . . . . 2 . . . . . Analyze 2 | . . . . . . 2 . . . . . Retrieve Study 3 | . . . . . 2 1 . . . . . Garrison Access Hacks 1 | . . . . . 1 . . . . . . Seal Access 1 | . . . . . 1 . . . . . . Unauthorized Hacks 4 | . 2 . . . 2 . . . . . . Terminals 4 | . 2 . . . 2 . . . . . . Botnet 4 | . 2 . . . 2 . . . . . . Fabricators . | . . . . . . . . . . . . Repair Stations . | . . . . . . . . . . . . Recycling Units . | . . . . . . . . . . . . Scanalyzers . | . . . . . . . . . . . . Garrison Access . | . . . . . . . . . . . . Data Cores Recovered . | . . . . . . . . . . . . Used . | . . . . . . . . . . . . Hacking Detections 20 | . 4 . . . 6 10 . . . . . Full Trace Events 4 | . 1 . . . 1 2 . . . . . Feedback Events . | . . . . . . . . . . . . Feedback Blocked . | . . . . . . . . . . . . Robot Schematics Acquired 3 | . . . . . . . . . 3 . . Robots Built . | . . . . . . . . . . . . Authchips . | . . . . . . . . . . . . Time . | . . . . . . . . . . . . Total Robot Build Rating . | . . . . . . . . . . . . Part Schematics Acquired 16 | . 1 . . . . 2 . . 13 . . Parts Built . | . . . . . . . . . . . . Authchips . | . . . . . . . . . . . . Time . | . . . . . . . . . . . . Total Part Build Rating . | . . . . . . . . . . . . Part Studies Acquired 3 | . . . . . 2 1 . . . . . Parts Repaired 3 | . . . . . 2 1 . . . . . Time 78 | . . . . . 52 26 . . . . . Parts Recycled . | . . . . . . . . . . . . Recycled Matter . | . . . . . . . . . . . . Retrieved Matter . | . . . . . . . . . . . . Retrieved Components 2 | . . . . . . 2 . . . . . Parts Scanalyzed 2 | . . . . . . 2 . . . . . Part Schematics Acquired 2 | . . . . . . 2 . . . . . Parts Damaged . | . . . . . . . . . . . . Bothacking | -11 -10 -10 -10 -9 -8 -7 -7 -7 -7 -7 -6 ------------ Run | Yrd Mat Min Exi Min Mat Fac Low Low Zio Dee Pro Used RIF Installer . | . . . . . . . . . . . . Robots Hacked . | . . . . . . . . . . . . Non-combat . | . . . . . . . . . . . . Combat . | . . . . . . . . . . . . Robot Hacks Applied . | . . . . . . . . . . . . Relay Couplers Released . | . . . . . . . . . . . . Fabnet Peak Effective % . | . . . . . . . . . . . . Robots Rewired . | . . . . . . . . . . . . Allies Hacked . | . . . . . . . . . . . . Hacks Repelled . | . . . . . . . . . . . . Allies | -11 -10 -10 -10 -9 -8 -7 -7 -7 -7 -7 -6 -------- Run | Yrd Mat Min Exi Min Mat Fac Low Low Zio Dee Pro Total Allies 2 | . . . . 2 . . . . . . . Largest Group 2 | . . . . 2 . . . . . . . Highest-Rated Group 50 | . . . . 50 . . . . . . . Highest-Rated Ally 31 | . . . . 31 . . . . . . . Total Orders . | . . . . . . . . . . . . Ally Attacks 4 | . . . . 4 . . . . . . . Total Damage . | . . . . . . . . . . . . Kills . | . . . . . . . . . . . . Allies Corrupted . | . . . . . . . . . . . . Allies Melted . | . . . . . . . . . . . . Intel | -11 -10 -10 -10 -9 -8 -7 -7 -7 -7 -7 -6 ------- Run | Yrd Mat Min Exi Min Mat Fac Low Low Zio Dee Pro Active Infowar (turns) 425 | 17 406 . . 2 . . . . . . . Sensors 2 | . . . . 2 . . . . . . . Terrain 423 | 17 406 . . . . . . . . . . Robot Analysis Total 3 | . 1 . . . 2 . . . . . . Derelict Logs Recovered 7 | . . . . 1 . . 1 3 2 . . Drone Launches . | . . . . . . . . . . . . Drone Recoveries . | . . . . . . . . . . . . Exploration | -11 -10 -10 -10 -9 -8 -7 -7 -7 -7 -7 -6 ------------- Run | Yrd Mat Min Exi Min Mat Fac Low Low Zio Dee Pro Turns Passed 14340 | 284 944 268 490 821 2565 3366 857 1240 1705 1263 537 Spaces Moved 5512 | 154 486 143 293 449 873 1163 220 365 690 422 254 Core 21 | 5 . . . . . . . 9 . . 7 Treads 4914 | 149 486 143 293 449 873 1163 220 278 690 170 . Legs 57 | . . . . . . . . . . 57 . Wheels 93 | . . . . . . . . 78 . 15 . Hover 415 | . . . . . . . . . . 168 247 Flight 12 | . . . . . . . . . . 12 . Fastest Speed 50 | 50 160 160 160 160 160 242 242 245 245 190 50 Average Speed 220 | 156 160 160 160 160 191 244 338 323 245 262 192 Slowest Speed 2100 | 160 160 160 160 160 245 245 650 2100 245 812 550 Overloaded Moves . | . . . . . . . . . . . . Propulsion Burnouts . | . . . . . . . . . . . . Robots Hopped . | . . . . . . . . . . . . Potential Cave-ins 2 | . . . . . . 2 . . . . . Cave-ins Triggered . | . . . . . . . . . . . . Exploration Rate (%) 55 | 6 94 30 61 87 76 31 42 59 78 58 47 Regions Visited 11 Branch Regions 8 Pre-discovered Areas 3 | . . . . 1 . . . 2 . . . Known Exits Taken 5 | . . . . . . 1 1 1 1 1 . Unknown Exits Taken 6 | 1 1 1 1 1 1 . . . . . . Scrap Searched 8 | . . . . 2 . . 1 2 3 . . Spaces Dug 10 | . . . . . 1 9 . . . . . Terrain Destroyed 334 | . . . . 35 53 66 30 56 . 83 11 Melee . | . . . . . . . . . . . . Projectile 110 | . . . . . 17 31 30 7 . 14 11 AOE 224 | . . . . 35 36 35 . 49 . 69 . Terrain Rammed . | . . . . . . . . . . . . Walls Destroyed . | . . . . . . . . . . . . Machines Disabled . | . . . . . . . . . . . . Actions | -11 -10 -10 -10 -9 -8 -7 -7 -7 -7 -7 -6 --------- Run | Yrd Mat Min Exi Min Mat Fac Low Low Zio Dee Pro Total 7007 | 174 576 162 315 518 1548 1567 268 400 705 501 273 Wait 785 | . 16 10 19 29 477 230 4 . . . . Move 5501 | 153 485 142 292 448 872 1162 219 364 689 421 254 Hop . | . . . . . . . . . . . . Pick Up 87 | 4 10 . 1 4 22 27 3 9 3 4 . Fast Attach 49 | 7 5 . . 2 14 7 . 3 4 7 . Attach 34 | . . . . 1 9 6 4 3 . 10 1 Detach 10 | . . . . 2 5 2 . . . 1 . Swap 83 | . 7 . 1 5 22 22 6 4 3 12 1 Drop 82 | . 13 . 2 2 25 27 . 4 6 3 . Fire 349 | 10 40 10 . 25 102 67 32 13 . 33 17 Melee 15 | . . . . . . 5 . . . 10 . Ram . | . . . . . . . . . . . . Kick . | . . . . . . . . . . . . Crush . | . . . . . . . . . . . . Escape Stasis 12 | . . . . . . 12 . . . . . Rewire . | . . . . . . . . . . . . Trap . | . . . . . . . . . . . . Miscellaneous . | . . . . . . . . . . . . Route ------- -11/Scrapyard -10/Materials (discovered 6 exits: [*Mat x3] / [*Min x2] / [*Sub]) -10/Mines -10/Exiles -9/Mines -8/Materials (discovered 2 exits: *Fac x2) -7/Factory (discovered 3 exits: Sto / *Low x2) -7/Lower Caves -7/Lower Caves (discovered 2 exits: *Fac / *Zio) -7/Zion (discovered 2 exits: *Dee / [*Pro]) -7/Deep Caves -6/Proximity Caves History --------- Turn | Location | Event 7 | -11/Scrapyard | Discovered new exit (range 15) 285 | -11/Scrapyard | Entered Materials 329 | -10/Materials | Build established: Mutant 457 | -10/Materials | Discovered new exit (range 6) 541 | -10/Materials | Discovered new exit (range 13) 768 | -10/Materials | Discovered new exit (range 16) 980 | -10/Materials | Discovered new exit (range 7) 990 | -10/Materials | Discovered new exit (range 16) 1085 | -10/Materials | Derelicts attacked the area 1213 | -10/Materials | Discovered new exit (range 11) 1229 | -10/Materials | Entered Mines 1489 | -10/Mines | Deemed a non-threat by the Exiles lab entrance 1489 | -10/Mines | Discovered new exit (range 5) 1497 | -10/Mines | Entered Exiles 1539 | -10/Exiles | Met 8R-AWN 1566 | -10/Exiles | Met EX-HEX 1609 | -10/Exiles | Met EX-BIN 1630 | -10/Exiles | Aligned with FarCom system 1632 | -10/Exiles | Given EX-Vault access code 1729 | -10/Exiles | Opened EX-Vault 1743 | -10/Exiles | Found Skeleton Box 1774 | -10/Exiles | Warned to stay clear of 0b10 Research branches 1796 | -10/Exiles | Exiles lab attacked by MAIN.C 1972 | -10/Exiles | Discovered new exit (range 10) 1987 | -10/Exiles | Left Exiles lab with Skeleton Box 1987 | -10/Exiles | Entered Mines 2045 | -9/Mines | Learned location of Zion (-7) 2135 | -9/Mines | Found a damaged Exp. Sensor Array with a note attached 2138 | -9/Mines | Found Prototype Device 2138 | -9/Mines | Identified Exp. Sensor Array 2219 | -9/Mines | Assembled infested the area 2302 | -9/Mines | Lost 3 allies 2395 | -9/Mines | Found the Drone Emporium 2653 | -9/Mines | Found a hidden stash of uninstalled traps 2660 | -9/Mines | Core integrity fell below 50% 2696 | -9/Mines | A weapon hastily lodged in a ceiling crevice suddenly fell to the ground 2793 | -9/Mines | Discovered new exit (range 9) 2808 | -9/Mines | Entered Materials 2808 | -8/Materials | Evolved 4 slots: Propulsion x2, Utility x2 3015 | -8/Materials | Central database locked down 3246 | -8/Materials | Build established: Scavenger-Mutant 3505 | -8/Materials | Discovered new exit (range 10) 3980 | -8/Materials | Repaired Lgt. Treads 4011 | -8/Materials | Repaired Lgt. Treads 4015 | -8/Materials | Garrison activated, responded to threat 4327 | -8/Materials | Lost 3 parts (2u1w) 4577 | -8/Materials | Build established: Mutant 5208 | -8/Materials | First assault squad dispatched 5349 | -8/Materials | Discovered new exit (range 5) 5373 | -8/Materials | Entered Factory 5373 | -7/Factory | Evolved 2 slots: Propulsion x1, Utility x1 5432 | -7/Factory | Found Prototype Launcher 5432 | -7/Factory | Identified Scatter Rocket Array 5648 | -7/Factory | Build established: Scavenger-Mutant 5894 | -7/Factory | Central database locked down 6181 | -7/Factory | Cargo convoy interrupted 6683 | -7/Factory | Destroyed 7 combat bots 7035 | -7/Factory | Identified exit to Storage 7035 | -7/Factory | Identified exit to Lower Caves 7968 | -7/Factory | Repaired Broken Arm. Treads 8739 | -7/Factory | Entered Lower Caves 8846 | -7/Lower Caves | Learned 4 Factory zone layouts 9111 | -7/Lower Caves | Lost 4 parts (3n1u) 9361 | -7/Lower Caves | Build established: Mutant 9511 | -7/Lower Caves | Discovered new exit (range 6) 9592 | -7/Lower Caves | Identified exit to Lower Caves 9596 | -7/Lower Caves | Entered another Lower Caves area 9746 | -7/Lower Caves | Discovered new exit (range 6) 9770 | -7/Lower Caves | Identified exit to Factory 10171 | -7/Lower Caves | Build established: Scavenger-Mutant 10402 | -7/Lower Caves | System corruption reached 10% 10817 | -7/Lower Caves | Discovered new exit (range 9) 10834 | -7/Lower Caves | Identified exit to Zion 10836 | -7/Lower Caves | Entered Zion 10901 | -7/Zion | Acquired unknown access codes intercepted by a Zionite 10967 | -7/Zion | Found Prototype Special Weapon 10967 | -7/Zion | Identified RU-N14's Throwing Claymores 11017 | -7/Zion | System corruption cleaned by Quarantine Array 11206 | -7/Zion | Given the Hacking Drone Bay 11207 | -7/Zion | Found Prototype Device 11274 | -7/Zion | Discovered new exit (range 7) 11505 | -7/Zion | Found Prototype Launcher 11505 | -7/Zion | Identified Rocket Array 11747 | -7/Zion | Learned Factory stockpile data 11823 | -7/Zion | Rebuked by Imprinter 12139 | -7/Zion | Identified Hacking Drone Bay 12298 | -7/Zion | Learned location of 2 exits from Factory 12497 | -7/Zion | Opened final containment barrier to the Deep Caves 12531 | -7/Zion | Discovered new exit (range 5) 12536 | -7/Zion | Saw the warning signs outside the Deep Caves entrance 12539 | -7/Zion | Identified exit to Deep Caves 12541 | -7/Zion | Entered Deep Caves 12804 | -7/Deep Caves | Attacked by Z-Imprinter 12815 | -7/Deep Caves | Destroyed Z-Imprinter 13019 | -7/Deep Caves | Z-Facility disabled 13075 | -7/Deep Caves | Core integrity fell below 50% 13127 | -7/Deep Caves | Lost 10 parts (1p4n2u3w) 13307 | -7/Deep Caves | Build established: Mutant 13350 | -7/Deep Caves | Core integrity fell below 20% 13388 | -7/Deep Caves | Lost 3 parts (2n1w) 13767 | -7/Deep Caves | Build established: Scavenger-Mutant 13785 | -7/Deep Caves | Discovered new exit (range 11) 13802 | -7/Deep Caves | Identified exit to Proximity Caves 13804 | -7/Deep Caves | Entered Proximity Caves 13937 | -6/Proximity Caves | Spotter reported a threat 13958 | -6/Proximity Caves | Spotter reported a threat 14001 | -6/Proximity Caves | Spotter reported a threat 14011 | -6/Proximity Caves | Spotter reported a threat 14064 | -6/Proximity Caves | Spotter reported a threat 14117 | -6/Proximity Caves | Spotter reported a threat 14174 | -6/Proximity Caves | Spotter reported a threat 14254 | -6/Proximity Caves | Spotter reported a threat 14306 | -6/Proximity Caves | Spotted B-75 Beast 14337 | -6/Proximity Caves | Released all parts (8) 14341 | -6/Proximity Caves | Destroyed by B-75 Beast with Magnetic Acceleration Cannon Last Messages --------------- 14182_ N-01 Spotter destroyed. 14182_ Slug penetrates Wall. 14185_ Acquired 12 matter. 14191_ Acquired 6 matter. 14254_ ALERT: Unidentified potential threat approaching Complex 0b10. 14272_ Acquired 43 matter. 14306_ Zio. Glidesys I destroyed. 14325_ Exp. Heat Sink blasted off. 14330_ Zio. Glidesys I destroyed. 14333_ Huge Storage Unit destroyed. 14337_ Released Zio. Glidesys I. 14337_ Released Zio. Laser-S. 14337_ Released Zio. Light DM Reactor. 14337_ Released Imp. Signal Interpreter. 14337_ Released Adv. Targeting Computer. 14337_ Released Surge Thruster. 14337_ Released Gauss Cannon. 14337_ Released Hrd. Medium Armor Plating. [Achievement: Tester] Map ----- +----------------------------------------------------+ | ?????????????????????????????????????????????????? | | ?????????????????????????????????????????????????? | | ?????????????????????????????????????????????????? | | ?????????????????????????????????????????????????? | | ?????????????????????????????????????????????????? | | ?????????????????????????????????????????????????? | | ?????????????????????????????????????????????????? | | ?????????????????????????????????????????????????? | | ?????????????????????????????????????????????????? | | ?????????????????????????????????????????????????? | | ?????????????????????????????????????????????????? | | ?????????????????????????????????????????????????? | | ????????????????#????????????????????????????????? | | ?????????????? ???????????????????????????????? | | ?????????????? ???????????????????????????????? | | ??????????????? ???#??????????????????????????? | | ???????????????? ?## ?????????????????????????? | | ????????????????? ## ?????????????????????????? | | ?????????????????? ?????????????????????????? | | ??????????????????? #????????????????????????? | | ???????????????????? ##??????????????????????? | | ?????????????????????# #??????????????????????? | | ?????????????????????# #??????????????????????? | | ????????????????????## ##????####?????????????? | | ???????????????????## ##?### ###???????????? | | ??????? #?????????# @ ##"# ##??????????? | | ?????? #????????# % !!%!* ##?????????? | | ?????? #???????## =!!*!!! #?????????? | | ????? ????????### =#]![! #????????? | | ????? ?????????## ##*#;] % %;;##??? | | ????? #???###???# ###!## ; ;"" | | ?????? ##?# #### #?#[###### # | | ?????? ## ## #### ###??# #" # | | ???? #### # ""##?# #" | | ??? ??# #?# ""#?# ? | | ?? ## ####" "#?# ? # | | ?? #?#####??#? | | ??# ## !% #?????????? | | ??# #######" #?????????? | | ??# #### ##???# ^#?????????? | | ??# #??## ##??# ## #??????????? | | ### ???## ##### ### #?####???????????? | | # ##??## #?###??##?????????????????? | | # ##??## ##?????????????????????????? | | ?# #???# #??????????????????????????? | | ?# ##### ##?????????????????????????? | | ? ##????????????????????????? | | ???????## #????????????????????????? | | # ???????# ### ##????????????????????????? | | ? ???????# #?# ######?????????????????????????? | +----------------------------------------------------+ Best States ------------- Heat Dissipation 86 Coolant Potential 65 Energy Generation 27 Energy Capacity 290 Matter Stores 300 Matter Capacity 300 Sight Range 16 Robot Scan Range 20 Terrain Scan Range 16 Terrain Scan Density 10 Base Temperature (-) 100 Armor Coverage 600 Core Shielding 20 Propulsion Shielding 66 Weapon Shielding 66 Weapon Cycling 15 Evasion (%) 50 Targeting Accuracy 14 Recoil Reduction 5 Matter Filtering 30 Offensive Hacking 10 Defensive Hacking 10 Item Schematics ----------------- Huge Storage Unit | -10/Materials | Hacked Hvy. Missile Launcher | -7/Factory | Scanalyzed Hrd. Medium Armor Plating | -7/Factory | Scanalyzed Imp. Melee Analysis Suite | -7/Zion | Archive Imp. Reaction Control System | -7/Zion | Archive Hvy. Ion Cannon | -7/Zion | Archive Proton Cannon | -7/Zion | Archive Flexi-carbon Leg | -7/Zion | Archive System Restoration Module | -7/Zion | Archive Imp. Coolant Injector | -7/Zion | Archive Adv. Drone Bay | -7/Zion | Archive Adv. Terrain Scanner | -7/Zion | Archive Matter Filter | -7/Zion | Archive Thermic Laser | -7/Zion | Archive Imp. Heavy Armor Plating | -7/Zion | Archive Kinecellerator | -7/Zion | Archive Robot Schematics ------------------ D-53 Grenadier | -7/Zion | Archive W-25 Informer | -7/Zion | Archive R-06 Scavenger | -7/Zion | Archive Fabricated ------------ Nothing Repaired ---------- Lgt. Treads | 34% | -8/Materials Lgt. Treads | 35% | -8/Materials Arm. Treads | 7% | -7/Factory | Broken Studied --------- Hvy. Assault Rifle | -8/Materials | Hacked Imp. Grenade Launcher | -8/Materials | Hacked Assault Cannon | -7/Factory | Hacked Alien Tech Used ----------------- None Achievements -------------- Are We The Baddies? Signs Are For Wimps Tester Challenges ------------ None Game ------ Seed ShadeZeronetAxe Manual? 0 Play Time 01:40:30 Cumulative 103.4 hours Start 2026.04.24 @ 21:54:30 End 2026.04.24 @ 23:42:04 Sessions 1 Manual Loads 0 Difficulty Rogue Special Mode None Game No. 69 Rogue 69 Adventurer 0 Explorer 0 Win Type - Total 1 Types 1/0/0/0/0/0/0/0/0/0 Lore% 52 Gallery% 50 Achievement% 42 Wizard Run 0 Options --------- Layout 1 ASCII 0 Keyboard 0 Movement Mouse Keybinds 0 Fullscreen 1 Font 24/Smallcaps Map View 50x35 Zoom Use 0% Tactical HUD 1 Map Filters NONE Filters NONE Steam 1 RUN: 31366230-4729-4937-92f5-2dc2fe57d842